Workbook

Sheet Topics
A1: Good Spreadsheet Model Design
A2: Model 01: FC/VC Example
A3: Build Formula Input Area and Model area separately
A4: Goal Seek
A5: Data Tables
A6: Chart
A7: Model 02: Calculate Total Revenue from Transactional Data and Lookup Tables
A8: SUM, VLOOKUP, COUNTIFS, SUMPRODUCT and LOOKUP functions.
A9: Model 03: Calculate Total Shipping Costs
A10: MIN, INDEX, MATCH, IF functions.

Sheet Spreadsheet Models
A1: Good Spreadsheet Model Building:
A2: 1) Excel’s Golden Rule: If formula input (parameter, assumption, variable) can change put it in a cell and
A3: refer to it in the formula with a cell reference.
A4: 2) Label all formula inputs.
A5: 3) Separate the formula input area from the model area.
A6: 4) Model is where you create your formulas and where you can put your decision variable.
A7: 5) Label all elements in the model area.
A8: 6) Use appropriate Number & Stylistic Formatting to make the spreadsheet easy to understand.
A9: Remember: Number Formatting is a Facade.
A10: 7) Keep default alignments to visually portray the data type (Numbers to the right, Text to the left)
A11: 8) Name all sheets and files smartly.
A12: 9) Sometimes it is helpful to create math formulas or a influence diagram to describe your model.

Sheet FC VC Analysis

Sheet Quad FC VC Profit
A1: Formula Inputs (Parameters, Assumptions, Variables)
A2: Gel Boomerangs | B2: Manufactures Boomerangs
A3: Product to be made | B3: Quad
A4: Total Fixed Costs = FC | B4: 17430
A5: Material costs per unit = MC | B5: 4.3
A6: Assigned Indirect Costs per unit = IC | B6: 1.15
A7: Labor Costs per units = LC | B7: 4.17
A8: Revenue = R | B8: 16.5
A9: % of boomerangs made, but not sold (defects & returns) = D | B9: 0.02
A10: Goal: | B10: Calculate and Analyze Profit
A16: Math Formula:
A17: Variable cost per unit = VC = MC + IC + LC
A18: Total Variable Costs = TVC(q) = VC*q
A19: Total Costs = TC(q) = FC + TVC(q)
A20: Total Revenue = TR(q) = R*q*(1-D)
A21: Total Profit = TP(q) =TR(q) - TC(q)
A22: Unit Break Even Point = UBE = FC/(R*(1-D)-VC)
A24: Model: Calculate Total Profit Based on Quantity
A25: Production Volume = Units Produced = Quantity = q | B25: 2000 | C25: Decision Variable
A26: =A17 -> Variable cost per unit = VC = MC + IC + LC | B26: =SUM(B5:B7) -> 9.62
A27: Total Variable Costs = TVC(q) = VC*q | B27: =B26*B25 -> 19240
A28: Total Costs = TC(q) = FC + TVC(q) | B28: =B4+B27 -> 36670
A29: Total Revenue = TR(q) = R*q*(1-D) | B29: =B8*B25*(1-B9) -> 32340
A30: Total Profit = TP(q) =TR(q) - TC(q) | B30: =B29-B28 -> -4330
A31: Unit Break Even Point = UBE = FC/(R*(1-D)-VC) | B31: =ROUNDUP(B4/(B8*(1-B9)-B26),0) -> 2662

Sheet Goal Seek
A1: Formula Inputs (Parameters, Assumptions, Variables)
A2: Gel Boomerangs | B2: Manufactures Boomerangs
A3: Product to be made | B3: Quad
A4: Total Fixed Costs = FC | B4: 17430
A5: Material costs per unit = MC | B5: 4.3
A6: Assigned Indirect Costs per unit = IC | B6: 1.15
A7: Labor Costs per units = LC | B7: 4.17
A8: Revenue = R | B8: 16.5
A9: % of boomerangs made, but not sold (defects & returns) = D | B9: 0.02
A10: Goal: | B10: Calculate and Analyze Profit
A16: Math Formula:
A17: Variable cost per unit = VC = MC + IC + LC
A18: Total Variable Costs = TVC(q) = VC*q
A19: Total Costs = TC(q) = FC + TVC(q)
A20: Total Revenue = TR(q) = R*q*(1-D)
A21: Total Profit = TP(q) =TR(q) - TC(q)
A24: Model: Calculate Total Profit Based on Quantity
A25: Production Volume = Units Produced = Quantity = q | B25: 2000 | C25: Decision Variable
A26: =A17 -> Variable cost per unit = VC = MC + IC + LC | B26: =SUM(B5:B7) -> 9.62
A27: =A18 -> Total Variable Costs = TVC(q) = VC*q | B27: =B26*B25 -> 19240
A28: =A19 -> Total Costs = TC(q) = FC + TVC(q) | B28: =B4+B27 -> 36670
A29: =A20 -> Total Revenue = TR(q) = R*q*(1-D) | B29: =B8*B25*(1-B9) -> 32340
A30: =A21 -> Total Profit = TP(q) =TR(q) - TC(q) | B30: =B29-B28 -> -4330
A33: When "By Change Cells" was the "Quantity" Variable, Goal Seek gave us break even Total Profit of $0 when the units were changed to 2,661.
A34: When "By Change Cells" was the "Revenue" Variable, Goal Seek gave us break even Total Profit of $0 when the Revenue was changed to $18.71

Sheet 1 V Data Table
A1: Formula Inputs (Parameters, Assumptions, Variables)
A2: Gel Boomerangs | B2: Manufactures Boomerangs
A3: Product to be made | B3: Quad
A4: Total Fixed Costs = FC | B4: 17430
A5: Material costs per unit = MC | B5: 4.3
A6: Assigned Indirect Costs per unit = IC | B6: 1.15
A7: Labor Costs per units = LC | B7: 4.17
A8: Revenue = R | B8: 16.5
A9: % of boomerangs made, but not sold (defects & returns) = D | B9: 0.02
A10: Goal: | B10: Calculate and Analyze Profit
A11: Data Table Start Unit Value | B11: 0
A12: Data Table Unit Increment Value | B12: 500
A16: Math Formula:
A17: Variable cost per unit = VC = MC + IC + LC
A18: Total Variable Costs = TVC(q) = VC*q
A19: Total Costs = TC(q) = FC + TVC(q)
A20: Total Revenue = TR(q) = R*q*(1-D)
A21: Total Profit = TP(q) =TR(q) - TC(q)
A22: Unit Break Even Point = UBE = FC/(R*(1-D)-VC)
A24: Model: Calculate Total Profit Based on Quantity
A25: Production Volume = Units Produced = Quantity = q | B25: 2000 | C25: Decision Variable | E25: X | F25: Y
A26: =A17 -> Variable cost per unit = VC = MC + IC + LC | B26: =SUM(B5:B7) -> 9.62 | E26: =B31 -> 2662 | F26: =B4+E26*B26 -> 43038.44
A27: Total Variable Costs = TVC(q) = VC*q | B27: =B26*B25 -> 19240
A28: Total Costs = TC(q) = FC + TVC(q) | B28: =B4+B27 -> 36670 | E28: BEU Label:
A29: Total Revenue = TR(q) = R*q*(1-D) | B29: =B8*B25*(1-B9) -> 32340 | E29: ="BEU = "&E26 -> BEU = 2662
A30: Total Profit = TP(q) =TR(q) - TC(q) | B30: =B29-B28 -> -4330
A31: Unit Break Even Point = UBE = FC/(R*(1-D)-VC) | B31: =ROUNDUP(B4/(B8*(1-B9)-B26),0) -> 2662
A33: What-If Analysis: Data Table, 1 Variable: | C33: Total Revenue | D33: Total Costs | E33: Fixed Costs | F33: Total Profit
B34: Quantity | C34: =B29 -> 32340 | D34: =B28 -> 36670 | E34: =B4 -> 17430 | F34: =B30 -> -4330 | G34: <<== Formulas From Original Model (q = 2000)
B35: =B11 -> 0 | C35: 0 | D35: 17430 | E35: 17430 | F35: -17430 | N35: Steps to create Data Table:
B36: =B35+$B$12 -> 500 | C36: 8085 | D36: 22240 | E36: 17430 | F36: -14155 | N36: 1) You must have a formula that uses formula inputs. We have that in cell B30. It is the Total Profit = TP(q) =TR(q) - TC(q) formula.
B37: 1000 | C37: 16170 | D37: 27050 | E37: 17430 | F37: -10880 | N37: 2) The B30 formula is pointing to two previous formulas (cells B28 and B29) that use the formula input from cell B25 (our decision variable).
B38: 1500 | C38: 24255 | D38: 31860 | E38: 17430 | F38: -7605 | N38: 3) In cell C34, create a formula that points to the Total Profit = TP(q) =TR(q) - TC(q) formula.
B39: 2000 | C39: 32340 | D39: 36670 | E39: 17430 | F39: -4330 | N39: 4) Because we want to see how the "Total Profit" formula will change when we change the Decision Variable, "Quantity", we create a column of the new quantity inputs for quantity in the range B35:B47.
B40: 2500 | C40: 40425 | D40: 41480 | E40: 17430 | F40: -1055 | N40: 5) We highlight the range B34:C47, with the range C35:C47 containing empty cells.
B41: 3000 | C41: 48510 | D41: 46290 | E41: 17430 | F41: 2220 | N41: 6) On the Data Ribbon, we go to the Data Tools group, then click on the What-If Analysis dropdown arrow, then click Data Table.
B42: 3500 | C42: 56595 | D42: 51100 | E42: 17430 | F42: 5495 | N42: 7) Keyboard for Data Table: Alt, A, W, T or Alt, D, T
B43: 4000 | C43: 64680 | D43: 55910 | E43: 17430 | F43: 8770 | N43: 8) Because out New Inputs for "Quantity" are in a column, we click in the "Column input cell" textbox and then click on the cell that contains the Decision Variable, "Quantity", cell B25.
B44: 4500 | C44: 72765 | D44: 60720 | E44: 17430 | F44: 12045 | N44: 9) When you click OK, the Array Function TABLE is automatically entered as an Array Formula (notice the curly brackets in the formula bar)
B45: 5000 | C45: 80850 | D45: 65530 | E45: 17430 | F45: 15320 | N45: 10) This TABLE function automatically takes the formula in cell B30 (which is using the two previous formulas in cells B28 and B29) and substitutes the New Inputs for Quantities and displays the results in the range C35:C47.
B46: 5500 | C46: 88935 | D46: 70340 | E46: 17430 | F46: 18595 | N46: **Note: the use of "Column input cell" may seem backwards if you are used to using PivotTables where we have "Row area" Criteria and "Column area" criteria. This is an inconsistency on Microsoft's part.
B47: 6000 | C47: 97020 | D47: 75150 | E47: 17430 | F47: 21870
A49: What-If Analysis: Formulas | B49: Units | C49: Total Revenue | D49: Total Costs | E49: Fixed Costs | F49: Total Profit
B50: =B11 -> 0 | C50: =B50*$B$8*(1-$B$9) -> 0 | D50: =E50+B50*$B$26 -> 17430 | E50: =$B$4 -> 17430 | F50: =C50-D50 -> -17430
B51: =B50+$B$12 -> 500 | C51: =B51*$B$8*(1-$B$9) -> 8085 | D51: 22240 | E51: =$B$4 -> 17430 | F51: -14155
B52: =B51+$B$12 -> 1000 | C52: 16170 | D52: 27050 | E52: 17430 | F52: -10880
B53: 1500 | C53: 24255 | D53: 31860 | E53: 17430 | F53: -7605
B54: 2000 | C54: 32340 | D54: 36670 | E54: 17430 | F54: -4330
B55: 2500 | C55: 40425 | D55: 41480 | E55: 17430 | F55: -1055
B56: 3000 | C56: 48510 | D56: 46290 | E56: 17430 | F56: 2220
B57: 3500 | C57: 56595 | D57: 51100 | E57: 17430 | F57: 5495
B58: 4000 | C58: 64680 | D58: 55910 | E58: 17430 | F58: 8770
B59: 4500 | C59: 72765 | D59: 60720 | E59: 17430 | F59: 12045
B60: 5000 | C60: 80850 | D60: 65530 | E60: 17430 | F60: 15320
B61: =B60+$B$12 -> 5500 | C61: 88935 | D61: 70340 | E61: 17430 | F61: 18595
B62: 6000 | C62: 97020 | D62: 75150 | E62: 17430 | F62: 21870

Sheet 2 V Data Table
A1: Formula Inputs (Parameters, Assumptions, Variables)
A2: Gel Boomerangs | B2: Manufactures Boomerangs
A3: Product to be made | B3: Quad
A4: Total Fixed Costs = FC | B4: 17430
A5: Material costs per unit = MC | B5: 4.3
A6: Assigned Indirect Costs per unit = IC | B6: 1.15
A7: Labor Costs per units = LC | B7: 4.17
A8: Revenue = R | B8: 16.5
A9: % of boomerangs made, but not sold (defects & returns) = D | B9: 0.02
A10: Goal: | B10: Calculate and Analyze Profit
A11: Data Table Start Unit Value | B11: 1000
A12: Data Table Unit Increment Value | B12: 500
A13: Defect Rate Start Value | B13: 0.02
A14: Defect Rate Increment Value | B14: 0.005
A16: Math Formula:
A17: Variable cost per unit = VC = MC + IC + LC
A18: Total Variable Costs = TVC(q) = VC*q
A19: Total Costs = TC(q) = FC + TVC(q)
A20: Total Revenue = TR(q) = R*q*(1-D)
A21: Total Profit = TP(q) =TR(q) - TC(q)
A22: Unit Break Even Point = UBE = FC/(R*(1-D)-VC)
A24: Model: Calculate Total Profit Based on Quantity
A25: Production Volume = Units Produced = Quantity = q | B25: 2000 | C25: Decision Variable
A26: =A17 -> Variable cost per unit = VC = MC + IC + LC | B26: =SUM(B5:B7) -> 9.62
A27: Total Variable Costs = TVC(q) = VC*q | B27: =B26*B25 -> 19240
A28: Total Costs = TC(q) = FC + TVC(q) | B28: =B4+B27 -> 36670
A29: Total Revenue = TR(q) = R*q*(1-D) | B29: =B8*B25*(1-B9) -> 32340
A30: Total Profit = TP(q) =TR(q) - TC(q) | B30: =B29-B28 -> -4330
A31: Unit Break Even Point = UBE = FC/(R*(1-D)-VC) | B31: =ROUNDUP(B4/(B8*(1-B9)-B26),0) -> 2662
D32: =A9 -> % of boomerangs made, but not sold (defects & returns) = D
B33: Formula From Original Model (q = 2000) ==>> | C33: =B30 -> -4330 | D33: =B13 -> 0.02 | E33: =D33+$B$14 -> 0.025 | F33: =E33+$B$14 -> 0.03 | G33: 0.035 | H33: 0.04 | L33: Steps for 2 Variable Data Table:
B34: =A25 -> Production Volume = Units Produced = Quantity = q | C34: =B11 -> 1000 | D34: -10880 | E34: -10962.5 | F34: -11045 | G34: -11127.5 | H34: -11210 | L34: 1) You must have a formula that uses formula inputs. We have that in cell B30. It is the Total Profit = TP(q) =TR(q) - TC(q) formula.
C35: =C34+$B$12 -> 1500 | D35: -7605 | E35: -7728.75 | F35: -7852.5 | G35: -7976.25 | H35: -8100 | L35: 2) The B30 formula is pointing to two previous formulas (cells B28 and B29) that use the formula inputs from cell B25 (our decision variable) and from cell B9 (Defect Rate).
C36: =C35+$B$12 -> 2000 | D36: -4330 | E36: -4495 | F36: -4660 | G36: -4825 | H36: -4990 | L36: 3) In cell C33, create a formula that points to the "Total Revenue" formula. This must be in the upper left corner!!!!
C37: 2500 | D37: -1055 | E37: -1261.25 | F37: -1467.5 | G37: -1673.75 | H37: -1880 | L37: 4) Because we want to see how the "Total Revenue" formula will change when we change the Decision Variable, "Quantity" and "Defect Rate", we create a column of the new quantity inputs for quantity in the range C34:C46 and a row of new costs in the range D33:H33.
C38: 3000 | D38: 2220 | E38: 1972.5 | F38: 1725 | G38: 1477.5 | H38: 1230 | L38: 5) We highlight the range C33:H46, with the range D34:H46 containing empty cells.
C39: 3500 | D39: 5495 | E39: 5206.25 | F39: 4917.5 | G39: 4628.75 | H39: 4340 | L39: 6) On the Data Ribbon, we go to the Data Tools group, then click on the What-If Analysis dropdown arrow, then click Data Table.
C40: 4000 | D40: 8770 | E40: 8440 | F40: 8110 | G40: 7780 | H40: 7450 | L40: 7) Keyboard for Data Table: Alt, A, W, T or Alt, D, T
C41: 4500 | D41: 12045 | E41: 11673.75 | F41: 11302.5 | G41: 10931.25 | H41: 10560 | L41: 8) Because our New Inputs for "Quantity" are in a column, we click in the "Column input cell" textbox and then click on the cell that contains the Decision Variable, "Quantity", cell B25.
C42: 5000 | D42: 15320 | E42: 14907.5 | F42: 14495 | G42: 14082.5 | H42: 13670 | L42: 9) Because our New Inputs for "Defect Rate" are in a row, we click in the "Row input cell" textbox and then click on the cell that contains the Variable, "Defect Rate", cell B9.
C43: 5500 | D43: 18595 | E43: 18141.25 | F43: 17687.5 | G43: 17233.75 | H43: 16780 | L43: 10) When you click OK, the Array Function TABLE is automatically entered as an Array Formula (notice the curly brackets in the formula bar)
C44: 6000 | D44: 21870 | E44: 21375 | F44: 20880 | G44: 20385 | H44: 19890 | L44: 11) This TABLE function automatically takes the formula in cell B30 (which is using the two previous formulas in cells B25 and B9) and substitutes the New Inputs for Quantities and Defect Rate into the TABLE function formula and displays the results in the range D34:H46.
C45: 6500 | D45: 25145 | E45: 24608.75 | F45: 24072.5 | G45: 23536.25 | H45: 23000 | L45: **Note: the use of "Column input cell" and "Row input cell" may seem backwards if you are used to using PivotTables where we have "Row area" Criteria and "Column area" criteria. This is an inconsistency on Microsoft's part.
C46: 7000 | D46: 28420 | E46: 27842.5 | F46: 27265 | G46: 26687.5 | H46: 26110
A49: What-If Analysis: Formula Version for 2 Variable: | C49: Units/Defect % | D49: =B13 -> 0.02 | E49: =D49+$B$14 -> 0.025 | F49: =E49+$B$14 -> 0.03 | G49: 0.035 | H49: 0.04
C50: =B11 -> 1000 | D50: =$C50*$B$8*(1-D$49)-($C50*$B$26+$B$4) -> -10880 | E50: -10962.5 | F50: -11045 | G50: -11127.5 | H50: -11210
C51: =C50+$B$12 -> 1500 | D51: -7605 | E51: -7728.75 | F51: -7852.5 | G51: -7976.25 | H51: -8100
C52: =C51+$B$12 -> 2000 | D52: -4330 | E52: -4495 | F52: -4660 | G52: -4825 | H52: -4990
C53: 2500 | D53: -1055 | E53: -1261.25 | F53: -1467.5 | G53: -1673.75 | H53: -1880
C54: 3000 | D54: 2220 | E54: 1972.5 | F54: 1725 | G54: 1477.5 | H54: 1230
C55: 3500 | D55: 5495 | E55: 5206.25 | F55: 4917.5 | G55: 4628.75 | H55: 4340
C56: 4000 | D56: 8770 | E56: 8440 | F56: 8110 | G56: 7780 | H56: 7450
C57: 4500 | D57: 12045 | E57: 11673.75 | F57: 11302.5 | G57: 10931.25 | H57: 10560
C58: 5000 | D58: 15320 | E58: 14907.5 | F58: 14495 | G58: 14082.5 | H58: 13670
C59: 5500 | D59: 18595 | E59: 18141.25 | F59: 17687.5 | G59: 17233.75 | H59: 16780
C60: 6000 | D60: 21870 | E60: 21375 | F60: 20880 | G60: 20385 | H60: 19890
C61: 6500 | D61: 25145 | E61: 24608.75 | F61: 24072.5 | G61: 23536.25 | H61: 23000
C62: 7000 | D62: 28420 | E62: 27842.5 | F62: 27265 | G62: 26687.5 | H62: 26110

Sheet Calcualte Revenue
A1: A company that sells rolls of fence needs to calculate total revenue from a list of customer transactions and a pricing table.
A2: Given the transactional data table with the number of rolls of fence sold for each transaction and the pricing table,
A3: calculate total revenue and count the number of transactions that fell into each pricing category.
A5: Data set with number of rolls of fence sold for each transaction: | I5: Pricing Table:
Q6: LOOKUP to get Price:
A7: Date | B7: Number of Rolls | C7: Price | D7: Revenue | F7: Total Revenue Helper Column | G7: Total Revenue Single Cell Formula | I7: Units From | J7: Units To | K7: Price per Roll (100 feet) | L7: Count Transactions in Each Price Category | M7: Count Transactions in Each Price Category | Q7: =LOOKUP(B8,$I$8:$K$11) -> 168
A8: 2015-09-16 | B8: 540 | C8: =VLOOKUP(B8,$I$8:$K$11,3) -> 168 | D8: =C8*B8 -> 90720 | F8: =SUM(D8:D179) -> 11852436 | G8: =SUMPRODUCT(LOOKUP(B8:B179,I8:K11),B8:B179) -> 11852436 | I8: 0 | J8: 143 | K8: 198 | L8: =COUNTIFS($C$8:$C$179,K8) -> 22 | M8: =COUNTIFS($B$8:$B$179,">="&I8,$B$8:$B$179,"<="&J8) -> 22 | Q8: 168
A9: 2015-09-15 | B9: 360 | C9: =VLOOKUP(B9,$I$8:$K$11,3) -> 168 | D9: =C9*B9 -> 60480 | I9: 144 | J9: 288 | K9: 187 | L9: =COUNTIFS($C$8:$C$179,K9) -> 34 | M9: =COUNTIFS($B$8:$B$179,">="&I9,$B$8:$B$179,"<="&J9) -> 34 | Q9: 198
A10: 2015-09-16 | B10: 12 | C10: 198 | D10: 2376 | I10: 289 | J10: 577 | K10: 168 | L10: 65 | M10: 65 | Q10: 168
A11: 2015-09-15 | B11: 468 | C11: 168 | D11: 78624 | I11: 578 | J11: and up | K11: 152 | L11: 51 | M11: =COUNTIFS($B$8:$B$179,">="&I11) -> 51 | Q11: 198
A12: 2015-09-17 | B12: 48 | C12: 198 | D12: 9504 | Q12: 198
A13: 2015-09-18 | B13: 84 | C13: 198 | D13: 16632 | Q13: 168
A14: 2015-09-17 | B14: 540 | C14: 168 | D14: 90720 | Q14: 168
A15: 2015-09-18 | B15: 492 | C15: 168 | D15: 82656 | Q15: 187
A16: 2015-09-18 | B16: 204 | C16: 187 | D16: 38148 | Q16: 168
A17: 2015-09-15 | B17: 408 | C17: 168 | D17: 68544 | Q17: 152
A18: 2015-09-17 | B18: 780 | C18: 152 | D18: 118560 | Q18: 168
A19: 2015-09-16 | B19: 444 | C19: 168 | D19: 74592 | Q19: 168
A20: 2015-09-15 | B20: 432 | C20: 168 | D20: 72576 | Q20: 168
A21: 2015-09-16 | B21: 456 | C21: 168 | D21: 76608 | Q21: 152
A22: 2015-09-16 | B22: 768 | C22: 152 | D22: 116736 | Q22: 168
A23: 2015-09-17 | B23: 528 | C23: 168 | D23: 88704 | Q23: 152
A24: 2015-09-15 | B24: 624 | C24: 152 | D24: 94848 | Q24: 168
A25: 2015-09-17 | B25: 372 | C25: 168 | D25: 62496 | Q25: 152
A26: 2015-09-18 | B26: 588 | C26: 152 | D26: 89376 | Q26: 168
A27: 2015-09-15 | B27: 504 | C27: 168 | D27: 84672 | Q27: 168
A28: 2015-09-16 | B28: 504 | C28: 168 | D28: 84672 | Q28: 152
A29: 2015-09-18 | B29: 660 | C29: 152 | D29: 100320 | Q29: 168
A30: 2015-09-16 | B30: 468 | C30: 168 | D30: 78624 | Q30: 168
A31: 2015-09-18 | B31: 492 | C31: 168 | D31: 82656 | Q31: 187
A32: 2015-09-18 | B32: 204 | C32: 187 | D32: 38148 | Q32: 187
A33: 2015-09-15 | B33: 168 | C33: 187 | D33: 31416 | Q33: 198
A34: 2015-09-17 | B34: 84 | C34: 198 | D34: 16632 | Q34: 152
A35: 2015-09-17 | B35: 588 | C35: 152 | D35: 89376 | Q35: 187
A36: 2015-09-15 | B36: 240 | C36: 187 | D36: 44880 | Q36: 152
A37: 2015-09-18 | B37: 696 | C37: 152 | D37: 105792 | Q37: 168
A38: 2015-09-15 | B38: 360 | C38: 168 | D38: 60480 | Q38: 187
A39: 2015-09-15 | B39: 264 | C39: 187 | D39: 49368 | Q39: =LOOKUP(B40,$I$8:$K$11) -> 152
A40: 2015-09-15 | B40: 612 | C40: 152 | D40: 93024 | Q40: 152
A41: 2015-09-16 | B41: 792 | C41: 152 | D41: 120384 | Q41: 198
A42: 2015-09-18 | B42: 12 | C42: 198 | D42: 2376 | Q42: 168
A43: 2015-09-18 | B43: 324 | C43: 168 | D43: 54432 | Q43: 168
A44: 2015-09-15 | B44: 324 | C44: 168 | D44: 54432 | Q44: 152
A45: 2015-09-15 | B45: 588 | C45: 152 | D45: 89376 | Q45: 168
A46: 2015-09-17 | B46: 492 | C46: 168 | D46: 82656 | Q46: 152
A47: 2015-09-15 | B47: 804 | C47: 152 | D47: 122208 | Q47: 168
A48: 2015-09-15 | B48: 540 | C48: 168 | D48: 90720 | Q48: 168
A49: 2015-09-17 | B49: 468 | C49: 168 | D49: 78624 | Q49: 152
A50: 2015-09-15 | B50: 624 | C50: 152 | D50: 94848 | Q50: 168
A51: 2015-09-16 | B51: 396 | C51: 168 | D51: 66528 | Q51: 198
A52: 2015-09-15 | B52: 36 | C52: 198 | D52: 7128 | Q52: 168
A53: 2015-09-18 | B53: 384 | C53: 168 | D53: 64512 | Q53: 198
A54: 2015-09-15 | B54: 132 | C54: 198 | D54: 26136 | Q54: 168
A55: 2015-09-18 | B55: 312 | C55: 168 | D55: 52416 | Q55: 168
A56: 2015-09-16 | B56: 492 | C56: 168 | D56: 82656 | Q56: 168
A57: 2015-09-17 | B57: 516 | C57: 168 | D57: 86688 | Q57: 152
A58: 2015-09-16 | B58: 744 | C58: 152 | D58: 113088 | Q58: 187
A59: 2015-09-15 | B59: 240 | C59: 187 | D59: 44880 | Q59: 187
A60: 2015-09-17 | B60: 252 | C60: 187 | D60: 47124 | Q60: 152
A61: 2015-09-15 | B61: 768 | C61: 152 | D61: 116736 | Q61: 168
A62: 2015-09-15 | B62: 468 | C62: 168 | D62: 78624 | Q62: 152
A63: 2015-09-15 | B63: 720 | C63: 152 | D63: 109440 | Q63: 152
A64: 2015-09-17 | B64: 804 | C64: 152 | D64: 122208 | Q64: 187
A65: 2015-09-17 | B65: 192 | C65: 187 | D65: 35904 | Q65: 152
A66: 2015-09-15 | B66: 732 | C66: 152 | D66: 111264 | Q66: 187
A67: 2015-09-17 | B67: 216 | C67: 187 | D67: 40392 | Q67: 152
A68: 2015-09-15 | B68: 648 | C68: 152 | D68: 98496 | Q68: 168
A69: 2015-09-16 | B69: 432 | C69: 168 | D69: 72576 | Q69: 168
A70: 2015-09-15 | B70: 384 | C70: 168 | D70: 64512 | Q70: 187
A71: 2015-09-15 | B71: 144 | C71: 187 | D71: 26928 | Q71: =LOOKUP(B72,$I$8:$K$11) -> 152
A72: 2015-09-18 | B72: 684 | C72: 152 | D72: 103968 | Q72: 187
A73: 2015-09-15 | B73: 216 | C73: =VLOOKUP(B73,$I$8:$K$11,3) -> 187 | D73: =C73*B73 -> 40392 | Q73: 168
A74: 2015-09-15 | B74: 480 | C74: 168 | D74: 80640 | Q74: 168
A75: 2015-09-15 | B75: 384 | C75: 168 | D75: 64512 | Q75: 198
A76: 2015-09-15 | B76: 84 | C76: 198 | D76: 16632 | Q76: 152
A77: 2015-09-15 | B77: 756 | C77: 152 | D77: 114912 | Q77: 152
A78: 2015-09-18 | B78: 744 | C78: 152 | D78: 113088 | Q78: 168
A79: 2015-09-18 | B79: 300 | C79: 168 | D79: 50400 | Q79: 168
A80: 2015-09-15 | B80: 576 | C80: 168 | D80: 96768 | Q80: 168
A81: 2015-09-18 | B81: 408 | C81: 168 | D81: 68544 | Q81: 168
A82: 2015-09-17 | B82: 420 | C82: 168 | D82: 70560 | Q82: 187
A83: 2015-09-16 | B83: 240 | C83: 187 | D83: 44880 | Q83: 198
A84: 2015-09-17 | B84: 96 | C84: 198 | D84: 19008 | Q84: 168
A85: 2015-09-16 | B85: 348 | C85: 168 | D85: 58464 | Q85: 168
A86: 2015-09-18 | B86: 420 | C86: 168 | D86: 70560 | Q86: 198
A87: 2015-09-18 | B87: 132 | C87: 198 | D87: 26136 | Q87: 168
A88: 2015-09-15 | B88: 516 | C88: 168 | D88: 86688 | Q88: 168
A89: 2015-09-17 | B89: 576 | C89: 168 | D89: 96768 | Q89: 187
A90: 2015-09-18 | B90: 288 | C90: 187 | D90: 53856 | Q90: 168
A91: 2015-09-15 | B91: 492 | C91: 168 | D91: 82656 | Q91: 152
A92: 2015-09-15 | B92: 636 | C92: 152 | D92: 96672 | Q92: 168
A93: 2015-09-16 | B93: 348 | C93: 168 | D93: 58464 | Q93: 187
A94: 2015-09-15 | B94: 168 | C94: 187 | D94: 31416 | Q94: 187
A95: 2015-09-15 | B95: 264 | C95: 187 | D95: 49368 | Q95: 152
A96: 2015-09-18 | B96: 600 | C96: 152 | D96: 91200 | Q96: 187
A97: 2015-09-15 | B97: 216 | C97: 187 | D97: 40392 | Q97: 152
A98: 2015-09-18 | B98: 648 | C98: 152 | D98: 98496 | Q98: 187
A99: 2015-09-17 | B99: 288 | C99: 187 | D99: 53856 | Q99: 152
A100: 2015-09-16 | B100: 684 | C100: 152 | D100: 103968 | Q100: 187
A101: 2015-09-15 | B101: 168 | C101: 187 | D101: 31416 | Q101: 152
A102: 2015-09-16 | B102: 756 | C102: 152 | D102: 114912 | Q102: 152
A103: 2015-09-17 | B103: 648 | C103: 152 | D103: 98496 | Q103: =LOOKUP(B104,$I$8:$K$11) -> 152
A104: 2015-09-15 | B104: 696 | C104: 152 | D104: 105792 | Q104: 168
A105: 2015-09-17 | B105: 456 | C105: 168 | D105: 76608 | Q105: 152
A106: 2015-09-16 | B106: 696 | C106: 152 | D106: 105792 | Q106: 187
A107: 2015-09-17 | B107: 252 | C107: 187 | D107: 47124 | Q107: 152
A108: 2015-09-16 | B108: 732 | C108: 152 | D108: 111264 | Q108: 198
A109: 2015-09-18 | B109: 132 | C109: 198 | D109: 26136 | Q109: 152
A110: 2015-09-17 | B110: 744 | C110: 152 | D110: 113088 | Q110: 152
A111: 2015-09-18 | B111: 732 | C111: 152 | D111: 111264 | Q111: 168
A112: 2015-09-17 | B112: 312 | C112: 168 | D112: 52416 | Q112: 187
A113: 2015-09-18 | B113: 288 | C113: 187 | D113: 53856 | Q113: 198
A114: 2015-09-17 | B114: 108 | C114: 198 | D114: 21384 | Q114: 168
A115: 2015-09-18 | B115: 540 | C115: 168 | D115: 90720 | Q115: 152
A116: 2015-09-15 | B116: 648 | C116: 152 | D116: 98496 | Q116: 187
A117: 2015-09-16 | B117: 156 | C117: 187 | D117: 29172 | Q117: 198
A118: 2015-09-18 | B118: 12 | C118: 198 | D118: 2376 | Q118: 187
A119: 2015-09-16 | B119: 216 | C119: 187 | D119: 40392 | Q119: 152
A120: 2015-09-15 | B120: 660 | C120: 152 | D120: 100320 | Q120: 187
A121: 2015-09-18 | B121: 168 | C121: 187 | D121: 31416 | Q121: 152
A122: 2015-09-17 | B122: 624 | C122: 152 | D122: 94848 | Q122: 198
A123: 2015-09-15 | B123: 72 | C123: 198 | D123: 14256 | Q123: 168
A124: 2015-09-16 | B124: 444 | C124: 168 | D124: 74592 | Q124: 187
A125: 2015-09-17 | B125: 204 | C125: 187 | D125: 38148 | Q125: 168
A126: 2015-09-17 | B126: 576 | C126: 168 | D126: 96768 | Q126: 198
A127: 2015-09-18 | B127: 84 | C127: 198 | D127: 16632 | Q127: 198
A128: 2015-09-18 | B128: 108 | C128: 198 | D128: 21384 | Q128: 187
A129: 2015-09-16 | B129: 228 | C129: 187 | D129: 42636 | Q129: 168
A130: 2015-09-15 | B130: 408 | C130: 168 | D130: 68544 | Q130: 168
A131: 2015-09-16 | B131: 516 | C131: 168 | D131: 86688 | Q131: 152
A132: 2015-09-16 | B132: 804 | C132: 152 | D132: 122208 | Q132: 152
A133: 2015-09-18 | B133: 696 | C133: 152 | D133: 105792 | Q133: 187
A134: 2015-09-16 | B134: 264 | C134: 187 | D134: 49368 | Q134: 168
A135: 2015-09-15 | B135: 396 | C135: 168 | D135: 66528 | Q135: =LOOKUP(B136,$I$8:$K$11) -> 152
A136: 2015-09-15 | B136: 780 | C136: 152 | D136: 118560 | Q136: 198
A137: 2015-09-17 | B137: 12 | C137: =VLOOKUP(B137,$I$8:$K$11,3) -> 198 | D137: =C137*B137 -> 2376 | Q137: 168
A138: 2015-09-16 | B138: 432 | C138: 168 | D138: 72576 | Q138: 187
A139: 2015-09-15 | B139: 216 | C139: 187 | D139: 40392 | Q139: 152
A140: 2015-09-18 | B140: 768 | C140: 152 | D140: 116736 | Q140: 187
A141: 2015-09-15 | B141: 204 | C141: 187 | D141: 38148 | Q141: 168
A142: 2015-09-16 | B142: 540 | C142: 168 | D142: 90720 | Q142: 168
A143: 2015-09-17 | B143: 300 | C143: 168 | D143: 50400 | Q143: 152
A144: 2015-09-15 | B144: 804 | C144: 152 | D144: 122208 | Q144: 198
A145: 2015-09-16 | B145: 132 | C145: 198 | D145: 26136 | Q145: 152
A146: 2015-09-17 | B146: 804 | C146: 152 | D146: 122208 | Q146: 187
A147: 2015-09-17 | B147: 168 | C147: 187 | D147: 31416 | Q147: 198
A148: 2015-09-15 | B148: 96 | C148: 198 | D148: 19008 | Q148: 152
A149: 2015-09-17 | B149: 588 | C149: 152 | D149: 89376 | Q149: 168
A150: 2015-09-15 | B150: 384 | C150: 168 | D150: 64512 | Q150: 168
A151: 2015-09-17 | B151: 456 | C151: 168 | D151: 76608 | Q151: 198
A152: 2015-09-17 | B152: 24 | C152: 198 | D152: 4752 | Q152: 152
A153: 2015-09-18 | B153: 684 | C153: 152 | D153: 103968 | Q153: 168
A154: 2015-09-17 | B154: 384 | C154: 168 | D154: 64512 | Q154: 187
A155: 2015-09-15 | B155: 192 | C155: 187 | D155: 35904 | Q155: 168
A156: 2015-09-16 | B156: 300 | C156: 168 | D156: 50400 | Q156: 152
A157: 2015-09-18 | B157: 684 | C157: 152 | D157: 103968 | Q157: 187
A158: 2015-09-16 | B158: 288 | C158: 187 | D158: 53856 | Q158: 168
A159: 2015-09-18 | B159: 432 | C159: 168 | D159: 72576 | Q159: 152
A160: 2015-09-16 | B160: 648 | C160: 152 | D160: 98496 | Q160: 168
A161: 2015-09-16 | B161: 324 | C161: 168 | D161: 54432 | Q161: 198
A162: 2015-09-16 | B162: 24 | C162: 198 | D162: 4752 | Q162: 168
A163: 2015-09-15 | B163: 552 | C163: 168 | D163: 92736 | Q163: 187
A164: 2015-09-17 | B164: 168 | C164: 187 | D164: 31416 | Q164: 152
A165: 2015-09-17 | B165: 744 | C165: 152 | D165: 113088 | Q165: 187
A166: 2015-09-17 | B166: 228 | C166: 187 | D166: 42636 | Q166: 152
A167: 2015-09-16 | B167: 636 | C167: 152 | D167: 96672 | Q167: =LOOKUP(B168,$I$8:$K$11) -> 168
A168: 2015-09-16 | B168: 312 | C168: 168 | D168: 52416 | Q168: 198
A169: 2015-09-16 | B169: 36 | C169: 198 | D169: 7128 | Q169: 168
A170: 2015-09-17 | B170: 492 | C170: 168 | D170: 82656 | Q170: 152
A171: 2015-09-17 | B171: 660 | C171: 152 | D171: 100320 | Q171: 152
A172: 2015-09-15 | B172: 756 | C172: 152 | D172: 114912 | Q172: 187
A173: 2015-09-18 | B173: 288 | C173: 187 | D173: 53856 | Q173: 168
A174: 2015-09-18 | B174: 408 | C174: 168 | D174: 68544 | Q174: 168
A175: 2015-09-16 | B175: 384 | C175: 168 | D175: 64512 | Q175: 152
A176: 2015-09-18 | B176: 612 | C176: 152 | D176: 93024 | Q176: 152
A177: 2015-09-15 | B177: 600 | C177: 152 | D177: 91200 | Q177: 168
A178: 2015-09-17 | B178: 432 | C178: 168 | D178: 72576 | Q178: 168
A179: 2015-09-16 | B179: 300 | C179: 168 | D179: 50400

Sheet Shipping Costs
A1: A Compressor Sales Company has four shipping centers. It delevers the compressors to customers by truck. The per mile shipping charge is $3.11 with a minimum charge of $75. | M1: Formula Inputs (Parameters, Assumptions, Variables)
A2: For each customer, determine which Shipping Center has the shortest distance and then calculate the total shipping charge for each customer transaction. | M2: Per Mile Shipping Charge | N2: 3.11
M3: Minimum Charge | N3: 75
E4: Seattle, Washington | F4: Milwaukee, Wisconsin | G4: Birmingham, Alabama | H4: Oakland, California
A5: Customer List of Destination Zip Codes for current transactions: | E5: Shipping Center Source Zip Code with Miles from Shipping Center to Destination:
A7: City | B7: State | C7: Zip Code | E7: 98108 | F7: 53203 | G7: 35203 | H7: 94612 | I7: Min Distance | J7: Shipping Center | K7: Total Shipping Charge
A8: Chandler | B8: Arizona | C8: 85225 | E8: 1447 | F8: 1830 | G8: 1686 | H8: 766 | I8: =MIN(E8:H8) -> 766 | J8: =INDEX($E$4:$H$4,MATCH(I8,E8:H8,0)) -> Oakland, California | K8: =IF(I8*$N$2<$N$3,$N$3,I8*$N$2) -> 2382.26
A9: Glendale | B9: Arizona | C9: 85302 | E9: 1405 | F9: 1870 | G9: 1715 | H9: 744 | I9: =MIN(E9:H9) -> 744 | J9: =INDEX($E$4:$H$4,MATCH(I9,E9:H9,0)) -> Oakland, California | K9: =IF(I9*$N$2<$N$3,$N$3,I9*$N$2) -> 2313.84
A10: Mesa | B10: Arizona | C10: 85201 | E10: 1440 | F10: 1816 | G10: 1702 | H10: 758 | I10: 758 | J10: Oakland, California | K10: 2357.38
A11: Scottsdale | B11: Arizona | C11: 85251 | E11: 1435 | F11: 1818 | G11: 1706 | H11: 754 | I11: 754 | J11: Oakland, California | K11: 2344.94
A12: Little Rock | B12: Arkansas | C12: 72202 | E12: 2277 | F12: 743 | G12: 373 | H12: 1955 | I12: 373 | J12: Birmingham, Alabama | K12: 1160.03
A13: Antioch | B13: California | C13: 94509 | E13: 796 | F13: 2146 | G13: 2299 | H13: 36 | I13: 36 | J13: Oakland, California | K13: 111.96
A14: Berkeley | B14: California | C14: 94704 | E14: 795 | F14: 2165 | G14: 2319 | H14: 4 | I14: 4 | J14: Oakland, California | K14: 75
A15: Chula Vista | B15: California | C15: 91910 | E15: 1258 | F15: 2124 | G15: 1996 | H15: 499 | I15: 499 | J15: Oakland, California | K15: 1551.89
A16: Concord | B16: California | C16: 94520 | E16: 785 | F16: 2155 | G16: 2319 | H16: 25 | I16: 25 | J16: Oakland, California | K16: 77.75
A17: Daly City | B17: California | C17: 94015 | E17: 813 | F17: 2183 | G17: 2329 | H17: 21 | I17: 21 | J17: Oakland, California | K17: 75
A18: Fairfield | B18: California | C18: 94533 | E18: 759 | F18: 2129 | G18: 2339 | H18: 41 | I18: 41 | J18: Oakland, California | K18: 127.51
A19: Hayward | B19: California | C19: 94544 | E19: 816 | F19: 2186 | G19: 2306 | H19: 20 | I19: 20 | J19: Oakland, California | K19: 75
A20: Huntington Beach | B20: California | C20: 92647 | E20: 1162 | F20: 2063 | G20: 2034 | H20: 404 | I20: 404 | J20: Oakland, California | K20: 1256.44
A21: Long Beach | B21: California | C21: 90802 | E21: 1156 | F21: 2071 | G21: 2042 | H21: 398 | I21: 398 | J21: Oakland, California | K21: 1237.78
A22: Modesto | B22: California | C22: 95350 | E22: 822 | F22: 2158 | G22: 2248 | H22: 82 | I22: 82 | J22: Oakland, California | K22: 255.02
A23: Santa Clara | B23: California | C23: 95050 | E23: 834 | F23: 2204 | G23: 2290 | H23: 44 | I23: 44 | J23: Oakland, California | K23: 136.84
A24: Sunnyvale | B24: California | C24: 94086 | E24: 835 | F24: 2205 | G24: 2293 | H24: 44 | I24: 44 | J24: Oakland, California | K24: 136.84
A25: Thousand Oaks | B25: California | C25: 91362 | E25: 1143 | F25: 2092 | G25: 2062 | H25: 385 | I25: 385 | J25: Oakland, California | K25: 1197.35
A26: Vallejo | B26: California | C26: 94590 | E26: 773 | F26: 2143 | G26: 2328 | H26: 25 | I26: 25 | J26: Oakland, California | K26: 77.75
A27: Aurora | B27: Colorado | C27: 80017 | E27: 1332 | F27: 1045 | G27: 1318 | H27: 1260 | I27: 1045 | J27: Milwaukee, Wisconsin | K27: 3249.95
A28: Colorado Springs | B28: Colorado | C28: 80903 | E28: 1388 | F28: 1114 | G28: 1312 | H28: 1316 | I28: 1114 | J28: Milwaukee, Wisconsin | K28: 3464.54
A29: Denver | B29: Colorado | C29: 80202 | E29: 1318 | F29: 1043 | G29: 1328 | H29: 1246 | I29: 1043 | J29: Milwaukee, Wisconsin | K29: 3243.73
A30: Chicago | B30: Illinois | C30: 60607 | E30: 2067 | F30: 93 | G30: 663 | H30: 2124 | I30: 93 | J30: Milwaukee, Wisconsin | K30: 289.23
A31: Joliet | B31: Illinois | C31: 60436 | E31: 2052 | F31: 126 | G31: 671 | H31: 2099 | I31: 126 | J31: Milwaukee, Wisconsin | K31: 391.86
A32: Evansville | B32: Indiana | C32: 47708 | E32: 2254 | F32: 387 | G32: 343 | H32: 2214 | I32: 343 | J32: Birmingham, Alabama | K32: 1066.73
A33: Fort Wayne | B33: Indiana | C33: 46802 | E33: 2233 | F33: 262 | G33: 597 | H33: 2269 | I33: 262 | J33: Milwaukee, Wisconsin | K33: 814.82
A34: Cedar Rapids | B34: Iowa | C34: 52401 | E34: 1832 | F34: 244 | G34: 782 | H34: 1919 | I34: 244 | J34: Milwaukee, Wisconsin | K34: 758.84
A35: Kansas City | B35: Kansas | C35: 66106 | E35: 1842 | F35: 576 | G35: 695 | H35: 1802 | I35: 576 | J35: Milwaukee, Wisconsin | K35: 1791.36
A36: Topeka | B36: Kansas | C36: 66603 | E36: 1848 | F36: 630 | G36: 748 | H36: 1776 | I36: 630 | J36: Milwaukee, Wisconsin | K36: 1959.3
A37: Lexington-Fayette | B37: Kentucky | C37: 40511 | E37: 2406 | F37: 468 | G37: 411 | H37: 2383 | I37: 411 | J37: Birmingham, Alabama | K37: 1278.21
A38: Louisville-Jefferson County5 | B38: Kentucky | C38: 40231 | E38: 2340 | F38: 401 | G38: 363 | H38: 2317 | I38: 363 | J38: Birmingham, Alabama | K38: 1128.93
A39: New Orleans | B39: Louisiana | C39: 70113 | E39: 2617 | F39: 1016 | G39: 344 | H39: 2265 | I39: 344 | J39: Birmingham, Alabama | K39: 1069.84
A40: Baltimore | B40: Maryland | C40: 21202 | E40: 2771 | F40: 800 | G40: 781 | H40: 2808 | I40: 781 | J40: Birmingham, Alabama | K40: 2428.91
A41: Ann Arbor | B41: Michigan | C41: 48104 | E41: 2314 | F41: 343 | G41: 710 | H41: 2351 | I41: 343 | J41: Milwaukee, Wisconsin | K41: 1066.73
A42: Detroit | B42: Michigan | C42: 48233 | E42: 2352 | F42: 381 | G42: 722 | H42: 2389 | I42: 381 | J42: Milwaukee, Wisconsin | K42: 1184.91
A43: St. Paul | B43: Minnesota | C43: 55109 | E43: 1668 | F43: 332 | G43: 1069 | H43: 1970 | I43: 332 | J43: Milwaukee, Wisconsin | K43: 1032.52
A44: Kansas City | B44: Missouri | C44: 64108 | E44: 1840 | F44: 569 | G44: 688 | H44: 1800 | I44: 569 | J44: Milwaukee, Wisconsin | K44: 1769.59
A45: St. Louis | B45: Missouri | C45: 63155 | E45: 2089 | F45: 375 | G45: 500 | H45: 2050 | I45: 375 | J45: Milwaukee, Wisconsin | K45: 1166.25
A46: Omaha | B46: Nebraska | C46: 68108 | E46: 1659 | F46: 508 | G46: 869 | H46: 1661 | I46: 508 | J46: Milwaukee, Wisconsin | K46: 1579.88
A47: Henderson | B47: Nevada | C47: 89015 | E47: 1145 | F47: 1806 | G47: 1799 | H47: 568 | I47: 568 | J47: Oakland, California | K47: 1766.48
A48: Reno | B48: Nevada | C48: 89510 | E48: 738 | F48: 1964 | G48: 2267 | H48: 256 | I48: 256 | J48: Oakland, California | K48: 796.16
A49: Manchester | B49: New Hampshire | C49: 03103 | E49: 3087 | F49: 1116 | G49: 1214 | H49: 3124 | I49: 1116 | J49: Milwaukee, Wisconsin | K49: 3470.76
A50: Elizabeth | B50: New Jersey | C50: 07208 | E50: 2857 | F50: 886 | G50: 950 | H50: 2894 | I50: 886 | J50: Milwaukee, Wisconsin | K50: 2755.46
A51: Jersey City | B51: New Jersey | C51: 07302 | E51: 2860 | F51: 889 | G51: 959 | H51: 2896 | I51: 889 | J51: Milwaukee, Wisconsin | K51: 2764.79
A52: Newark | B52: New Jersey | C52: 07102 | E52: 2852 | F52: 881 | G52: 952 | H52: 2889 | I52: 881 | J52: Milwaukee, Wisconsin | K52: 2739.91
A53: New York | B53: New York | C53: 10199 | E53: 2863 | F53: 892 | G53: 964 | H53: 2900 | I53: 892 | J53: Milwaukee, Wisconsin | K53: 2774.12
A54: Yonkers | B54: New York | C54: 10701 | E54: 2873 | F54: 902 | G54: 980 | H54: 2910 | I54: 902 | J54: Milwaukee, Wisconsin | K54: 2805.22
A55: Cary | B55: North Carolina | C55: 27511 | E55: 2876 | F55: 905 | G55: 543 | H55: 2829 | I55: 543 | J55: Birmingham, Alabama | K55: 1688.73
A56: Durham | B56: North Carolina | C56: 27701 | E56: 2856 | F56: 885 | G56: 531 | H56: 2808 | I56: 531 | J56: Birmingham, Alabama | K56: 1651.41
A57: Cincinnati | B57: Ohio | C57: 45225 | E57: 2327 | F57: 389 | G57: 468 | H57: 2374 | I57: 389 | J57: Milwaukee, Wisconsin | K57: 1209.79
A58: Cleveland | B58: Ohio | C58: 44101 | E58: 2417 | F58: 446 | G58: 712 | H58: 2453 | I58: 446 | J58: Milwaukee, Wisconsin | K58: 1387.06
A59: Norman | B59: Oklahoma | C59: 73019 | E59: 2007 | F59: 892 | G59: 705 | H59: 1639 | I59: 705 | J59: Birmingham, Alabama | K59: 2192.55
A60: Tulsa | B60: Oklahoma | C60: 74107 | E60: 2000 | F60: 773 | G60: 639 | H60: 1718 | I60: 639 | J60: Birmingham, Alabama | K60: 1987.29
A61: Eugene | B61: Oregon | C61: 97401 | E61: 278 | F61: 2173 | G61: 2494 | H61: 523 | I61: 278 | J61: Seattle, Washington | K61: 864.58
A62: Portland | B62: Oregon | C62: 97208 | E62: 168 | F62: 2065 | G62: 2480 | H62: 629 | I62: 168 | J62: Seattle, Washington | K62: 522.48
A63: Philadelphia | B63: Pennsylvania | C63: 19104 | E63: 2832 | F63: 861 | G63: 878 | H63: 2869 | I63: 861 | J63: Milwaukee, Wisconsin | K63: 2677.71
A64: Pittsburgh | B64: Pennsylvania | C64: 15290 | E64: 2535 | F64: 564 | G64: 753 | H64: 2572 | I64: 564 | J64: Milwaukee, Wisconsin | K64: 1754.04
A65: Providence | B65: Rhode Island | C65: 02904 | E65: 3046 | F65: 1075 | G65: 1153 | H65: 3083 | I65: 1075 | J65: Milwaukee, Wisconsin | K65: 3343.25
A66: Columbia | B66: South Carolina | C66: 29201 | E66: 2835 | F66: 903 | G66: 362 | H66: 2678 | I66: 362 | J66: Birmingham, Alabama | K66: 1125.82
A67: Sioux Falls | B67: South Dakota | C67: 57104 | E67: 1478 | F67: 497 | G67: 1053 | H67: 1727 | I67: 497 | J67: Milwaukee, Wisconsin | K67: 1545.67
A68: Clarksville | B68: Tennessee | C68: 37043 | E68: 2359 | F68: 561 | G68: 232 | H68: 2294 | I68: 232 | J68: Birmingham, Alabama | K68: 721.52
A69: Killeen | B69: Texas | C69: 76541 | E69: 2091 | F69: 1156 | G69: 741 | H69: 1744 | I69: 741 | J69: Birmingham, Alabama | K69: 2304.51
A70: Laredo | B70: Texas | C70: 78041 | E70: 2219 | F70: 1432 | G70: 978 | H70: 1780 | I70: 978 | J70: Birmingham, Alabama | K70: 3041.58
A71: Mesquite | B71: Texas | C71: 75149 | E71: 2123 | F71: 1052 | G71: 629 | H71: 1734 | I71: 629 | J71: Birmingham, Alabama | K71: 1956.19
A72: Alexandria | B72: Virginia | C72: 22314 | E72: 2781 | F72: 811 | G72: 746 | H72: 2818 | I72: 746 | J72: Birmingham, Alabama | K72: 2320.06
A73: Hampton | B73: Virginia | C73: 23607 | E73: 2945 | F73: 974 | G73: 716 | H73: 2950 | I73: =MIN(E73:H73) -> 716 | J73: =INDEX($E$4:$H$4,MATCH(I73,E73:H73,0)) -> Birmingham, Alabama | K73: =IF(I73*$N$2<$N$3,$N$3,I73*$N$2) -> 2226.76
A74: Seattle | B74: Washington | C74: 98108 | E74: 0 | F74: 1995 | G74: 2525 | H74: 796 | I74: 0 | J74: Seattle, Washington | K74: 75
A75: Spokane | B75: Washington | C75: 99201 | E75: 282 | F75: 1714 | G75: 2244 | H75: 864 | I75: 282 | J75: Seattle, Washington | K75: 877.02
A76: Green Bay | B76: Wisconsin | C76: 54303 | E76: 1934 | F76: 121 | G76: 878 | H76: 2224 | I76: 121 | J76: Milwaukee, Wisconsin | K76: 376.31
A77: Madison | B77: Wisconsin | C77: 53714 | E77: 1927 | F77: 74 | G77: 811 | H77: 2091 | I77: 74 | J77: Milwaukee, Wisconsin | K77: 230.14
